{"text_format":"1","workbook":"xlsx","n_sheets":5,"sheets":["Intro","Questions - Evénements","Questions - Dates","Recherche","Data"],"not_rendered":{"charts":0,"images":16,"macros":1,"external_links":0,"defined_names":6,"comments":0,"pivot_tables":0},"unopened":[],"bounds":{"document_bytes":16777216,"sheet_cells":100000,"rows_first":2000,"rows_last":500,"rows_between":2000,"halvings":0,"cell_chars":16384,"cell_head_chars":4096},"cells_cut":0,"cells_raw":0,"read":"whole","date_system":"1900"}

{"sheet":"Intro","index":0,"n_rows":50,"n_cols":22,"rows_kept":50,"cut":false,"hidden":false,"merged":[[1,0,1,13],[3,0,3,13]]}
[]
["Des guerres, des inventions, des constructions, des hommes ont marqué l'histoire de l'humanité.",null,null,null,null,null,null,null,null,null,null,null,null,null,null,"Ce quiz utilise les macros Excel. Si vous avez le message ci-dessus, activez le contenu !"]
[]
["Ce quiz de dates pour situer plus de cent cinquante événements importants.",null,null,null,null,null,null,null,null,null,null,null,null,null,null,"Si vous avez le messsage ci-dessous, cliquez sur le bouton \"Débloquer les macros\" pour voir les instructions."]
[]
[null,null,null,null,null,null,null,null,null,null,null,null,0,null,null,null,null,null,null,null,null,"La feuille \"Recherche\"  permet de trouver"]
[null,null,null,null,null,null,null,null,null,null,null,null,0,null,null,null,null,null,null,null,null,"un événement du quiz à partir d'une date."]
[]
[null,null,null,null,null,null,null,null,null,null,null,null,null,null,null,"          Domaines des questions du quiz:"]
[]
[null,null,null,null,null,null,null,null,null,null,null,null,null,null,null,null,"La Préhistoire",null,{"$f":"Data!K3","v":4},"questions"]
[]
[]
[]
[null,null,null,null,null,null,null,null,null,null,null,null,null,null,null,null,"L'Antiquité",null,{"$f":"Data!L3","v":24},"questions"]
[]
[]
[]
[null,null,null,null,null,null,null,null,null,null,null,null,null,null,null,null,"L'histoire de France",null,{"$f":"Data!M3","v":30},"questions"]
[]
[]
[]
[null,null,null,null,null,null,null,null,null,null,null,null,null,null,null,null,"L'histoire suisse",null,{"$f":"Data!N3","v":27},"questions"]
[]
[]
[]
[null,null,null,null,null,null,null,null,null,null,null,null,null,null,null,null,"Evénements mondiaux",null,{"$f":"Data!O3","v":54},"questions"]
[]
[]
[]
[null,null,null,null,null,null,null,null,null,null,null,null,null,null,null,null,"Inventions et culture",null,{"$f":"Data!P3","v":41},"questions"]
[]
[]
[]
[]
[]
[]
[null,"© Yvan Péguiron 2025 - www.infodidac.ch"]
[]
[]
[]
[]
[]
[]
[]
[]
[]
[]
[]
["           Retour"]

{"sheet":"Questions - Evénements","index":1,"n_rows":32,"n_cols":19,"rows_kept":32,"cut":false,"hidden":false,"merged":[[0,8,1,8],[4,1,8,8],[11,1,11,4],[2,7,2,8],[0,7,1,7],[27,1,28,2],[27,3,28,3],[27,4,28,4],[24,1,24,2],[2,9,3,9],[20,5,20,6],[10,5,10,6],[12,5,12,6],[14,5,14,6],[16,5,16,6],[18,5,18,6],[13,8,15,8],[6,9,8,9]]}
[null,null,null,"Question no :",{"$f":"IF(O2>P4,P4&\" / \"&P4,O2&\" / \"&P4)","v":"0 / 180"},"Nb. de réponses :",{"$f":"O3","v":0},"% de réponses justes",{"$f":"IF(O3=0,\"\",M3/O3)","v":""}]
[null,null,null,null,null,"Nb. de justes :",{"$f":"M3","v":0},null,null,null,null,"no tirage",0,"Nb quest",0,{"$f":"Data!C1","v":180},null,"fin = 1","Onglet"]
[null,"            Situe dans le temps et donne  une date pour cet événement de l'histoire ",null,null,null,null,null,{"$f":"VLOOKUP(M2,Data1,3)","v":""},null,null,null,"nb juste",0,"nb réponses",0,"Nb Data",null,{"$f":"IF(D28+1=O2,1,0)","v":0},"Q"]
[null,null,null,null,null,null,null,null,null,null,null,"no propositions",null,{"$f":"Data!Q18","v":180},"nb Select",{"$f":"Data!R18","v":180},"Note sir 10:",{"$f":"IF(O3=0,1,ROUND((M3/O3)*20,0)/2)","v":1},{"$f":"INT(R4)","v":1}]
[null,{"$f":"VLOOKUP(M2,Data1,6)","v":"Pour démarrer : Bouton 'Nouvelle partie', choisir les options ci-dessous,  puis bouton  'Question'."},null,null,null,null,null,null,null,null,null,1,0,{"$f":"VLOOKUP(M5,Data1,4)","v":""},null,{"$f":"\"Partie terminée… Ta culture générale laisse à désirer !!!\"","v":"Partie terminée… Ta culture générale laisse à désirer !!!"}]
[null,null,null,null,null,null,null,null,null,{"$f":"IF(O2-1=P4,\"Note sur 10\",\"\")","v":""},null,2,0,"",null,{"$f":"\"Partie terminée… Tu peux faire mieux !\"","v":"Partie terminée… Tu peux faire mieux !"}]
[null,null,null,null,null,null,null,null,null,{"$f":"IF(O2-1=P4,R4,\"\")","v":""},null,3,0,"",null,{"$f":"\"Partie terminée… C'est bien !\"","v":"Partie terminée… C'est bien !"}]
[null,null,null,null,null,null,null,null,null,null,null,4,0,"",null,{"$f":"\"Partie terminée… Félicitations !\"","v":"Partie terminée… Félicitations !"}]
[null,null,null,null,null,null,null,null,null,null,null,5,0,"",null,{"$f":"\"Partie terminée… Magnifique résultat !\"","v":"Partie terminée… Magnifique résultat !"},null,"Valeur :",{"$f":"VLOOKUP(S4,R12:T22,2)","v":1}]
[null,null,null,null,null,null,null,null,null,null,null,6,0,"",null,{"$f":"\"Partie terminée à la perfection !\"","v":"Partie terminée à la perfection !"}]
[null,null,null,null,null,{"$f":"VLOOKUP(1,$L$5:$N$10,3)","v":""},null,{"$f":" IF($M$14=1,\"×\",\"\")","v":""},null,null,null,null,null,null,null,{"$f":"VLOOKUP(S9,L5:P11,5)","v":"Partie terminée… Ta culture générale laisse à désirer !!!"}]
[null,"Clique sur une date proposée !",null,null,null,null,null,null,null,null,null,"Bonne rép :",0,null,"No icone",{"$f":"IF(R3=1,7,VLOOKUP(M2,Data1,5))","v":0},null,0,1]
[null,null,null,null,null,{"$f":"VLOOKUP(2,$L$5:$N$10,3)","v":""},null,{"$f":" IF($M$14=2,\"×\",\"\")","v":""},null,null,null,null,null,null,null,null,null,1,1]
[null,null,null,null,null,null,null,null,{"$f":"IF(M14=0,\"\",IF(M14=M12,\"J\",\"û\"))","v":""},null,null,"Réponses:",0,null,null,null,null,2,1]
[null,null,null,null,null,{"$f":"VLOOKUP(3,$L$5:$N$10,3)","v":""},null,{"$f":" IF($M$14=3,\"×\",\"\")","v":""},null,null,null,null,null,null,null,null,null,3,2]
[null,null,null,null,null,null,null,null,null,null,null,"Sélection : ",null,"nb ques",null,"contròle",null,4,2]
[null,null,null,null,null,{"$f":"VLOOKUP(4,$L$5:$N$10,3)","v":""},null,{"$f":" IF($M$14=4,\"×\",\"\")","v":""},{"$f":"IF(M2=0,\"\",IF(M14=M12,\"Bravo !\",\"\"))","v":""},null,17,"Antiquité",true,{"$f":"IF(M17=FALSE,0,Data!K3+Data!L3)","v":28},null,{"$f":"IF(M17=FALSE,0,1)","v":1},null,5,3]
[null,null,null,null,null,null,null,null,null,null,18,"France",true,{"$f":"IF(M18=FALSE,0,Data!M3)","v":30},null,{"$f":"IF(M18=FALSE,0,1)","v":1},null,6,3]
[null,null,null,null,null,{"$f":"VLOOKUP(5,$L$5:$N$10,3)","v":""},null,{"$f":" IF($M$14=5,\"×\",\"\")","v":""},null,null,19,"Suisse",true,{"$f":"IF(M19=FALSE,0,Data!N3)","v":27},null,1,null,7,4]
[null,null,null,null,null,null,null,null,null,null,20,"Monde",true,{"$f":"IF(M20=FALSE,0,Data!O3)","v":54},null,1,null,8,4]
[null,null,null,null,null,{"$f":"VLOOKUP(6,$L$5:$N$10,3)","v":""},null,{"$f":" IF($M$14=6,\"×\",\"\")","v":""},null,null,21,"Inventeurs",true,{"$f":"IF(M21=FALSE,0,Data!P3)","v":41},null,1,null,9,5]
[null,null,null,null,null,null,null,null,null,null,22,"Avant 1500",false,null,{"$f":"Data!R3","v":82},0,null,10,6]
[null,{"$f":"IF(O2=0,\"Choisis les champs souhaités pour les questions et le nombre !\",\"\")","v":"Choisis les champs souhaités pour les questions et le nombre !"},null,null,null,null,null,null,null,null,23,"Après 1500",false,null,{"$f":"Data!S3","v":53},0]
[null,null,null,null,null,null,null,null,null,null,null,null,"Total",{"$f":"SUM(N17:N23)","v":180},null,{"$f":"SUM(P17:P23)","v":5}]
[]
[null,{"$f":"IF(H2=0,\"ou :\",\"\")","v":"ou :"}]
[]
[null,"Maximum de questions souhaitées :",null,180,{"$f":"\"/ \"&N4","v":"/ 180"}]
[]
[]
[]
[null,"PS: L'onglet \"Questions - Dates\" pose les questions à l'envers. D'une date, trouver l'événement."]

{"sheet":"Questions - Dates","index":2,"n_rows":28,"n_cols":19,"rows_kept":28,"cut":false,"hidden":false,"merged":[[18,5,18,6],[20,5,20,6],[24,1,24,2],[27,1,28,2],[27,3,28,3],[27,4,28,4],[16,5,16,6],[0,7,1,7],[0,8,1,8],[2,7,2,8],[2,9,3,9],[4,1,8,8],[10,5,10,6],[11,1,11,4],[12,5,12,6],[13,8,15,8],[14,5,14,6],[6,9,9,9]]}
[" ",null,null,"Question no :",{"$f":"IF(O2>P4,P4&\" / \"&P4,O2&\" / \"&P4)","v":"0 / 180"},"Nb. de réponses :",{"$f":"O3","v":0},"% de réponses justes",{"$f":"IF(O3=0,\"\",M3/O3)","v":""}]
[null,null,null,null,null,"Nb. de justes :",{"$f":"M3","v":0},null,null,null,null,"no tirage",0,"Nb quest",0,{"$f":"Data!C1","v":180},null,"fin = 1","Onglet"]
[null,"            Situe un événement de l'histoire à partir d'une date.",null,null,null,null,null,{"$f":"VLOOKUP(M2,Data1,3)","v":""},null,null,null,"nb juste",0,"nb réponses",0,"Nb Data",null,{"$f":"IF(D28+1=O2,1,0)","v":0},"D"]
[null,null,null,null,null,null,null,null,null,null,null,"no propositions",null,{"$f":"Data!Q18","v":180},"nb Select",{"$f":"Data!R18","v":180},"Note sir 10:",{"$f":"IF(O3=0,1,ROUND((M3/O3)*20,0)/2)","v":1},{"$f":"INT(R4)","v":1}]
[null,{"$f":"VLOOKUP(M2,Data1,4)","v":""},null,null,null,null,null,null,null,null,null,1,0,{"$f":"IF(M11=1,N11,VLOOKUP(M5,Data1,6))","v":"Cliquer sur Nouvelle partie"},null,{"$f":"\"Partie terminée… Ta culture générale laisse à désirer !!!\"","v":"Partie terminée… Ta culture générale laisse à désirer !!!"}]
[null,null,null,null,null,null,null,null,null,{"$f":"IF(O2-1=P4,\"Note sur 10\",\"\")","v":""},null,2,0,{"$f":"IF(M11=1,N11,VLOOKUP(M6,Data1,6))","v":"Cliquer sur Nouvelle partie"},null,{"$f":"\"Partie terminée… Tu peux faire mieux !\"","v":"Partie terminée… Tu peux faire mieux !"}]
[null,null,null,null,null,null,null,null,null,{"$f":"IF(O2-1=P4,R4,\"\")","v":""},null,3,0,{"$f":"IF(M11=1,N11,VLOOKUP(M7,Data1,6))","v":"Cliquer sur Nouvelle partie"},null,{"$f":"\"Partie terminée… C'est bien !\"","v":"Partie terminée… C'est bien !"}]
[null,null,null,null,null,null,null,null,null,null,null,4,0,{"$f":"IF(M11=1,N11,VLOOKUP(M8,Data1,6))","v":"Cliquer sur Nouvelle partie"},null,{"$f":"\"Partie terminée… Félicitations !\"","v":"Partie terminée… Félicitations !"}]
[null,null,null,null,null,null,null,null,null,null,null,5,0,{"$f":"IF(M11=1,N11,VLOOKUP(M9,Data1,6))","v":"Cliquer sur Nouvelle partie"},null,{"$f":"\"Partie terminée… Magnifique résultat !\"","v":"Partie terminée… Magnifique résultat !"},null,"Valeur :",{"$f":"VLOOKUP(S4,R12:T22,2)","v":1}]
[null,null,null,null,null,null,null,null,null,null,null,6,0,{"$f":"IF(M11=1,N11,VLOOKUP(M10,Data1,6))","v":"Cliquer sur Nouvelle partie"},null,{"$f":"\"Partie terminée à la perfection !\"","v":"Partie terminée à la perfection !"}]
[null,null,null,null,null,{"$f":"VLOOKUP(1,$L$5:$N$10,3)","v":"Cliquer sur Nouvelle partie"},null,{"$f":" IF($M$14=1,\"×\",\"\")","v":""},null,null,null,"début et fin ",{"$f":"IF(O2=0,1,IF(R3=1,1,0))","v":1},{"$f":"IF(O2=0,O11,\"Partie terminée\")","v":"Cliquer sur Nouvelle partie"},{"$f":"IF(Data!I1=\"Q\",\"Cliquer sur Nouvelle partie\",\"Nouvelle partie\")","v":"Cliquer sur Nouvelle partie"},{"$f":"VLOOKUP(S9,L5:P11,5)","v":"Partie terminée… Ta culture générale laisse à désirer !!!"}]
[null,"Clique sur une date proposée !",null,null,null,null,null,null,null,null,null,"Bonne rép :",0,null,"No icone",{"$f":"IF(R3=1,7,VLOOKUP(M2,Data1,5))","v":0},null,0,1]
[null,null,null,null,null,{"$f":"VLOOKUP(2,$L$5:$N$10,3)","v":"Cliquer sur Nouvelle partie"},null,{"$f":" IF($M$14=2,\"×\",\"\")","v":""},null,null,null,null,null,null,null,null,null,1,1]
[null,null,null,null,null,null,null,null,{"$f":"IF(M14=0,\"\",IF(M14=M12,\"J\",\"û\"))","v":""},null,null,"Réponses:",0,null,null,null,null,2,1]
[null,null,null,null,null,{"$f":"VLOOKUP(3,$L$5:$N$10,3)","v":"Cliquer sur Nouvelle partie"},null,{"$f":" IF($M$14=3,\"×\",\"\")","v":""},null,null,null,null,null,null,null,null,null,3,2]
[null,null,null,null,null,null,null,null,null,null,null,"Sélection : ",null,"nb ques",null,"contròle",null,4,2]
[null,null,null,null,null,{"$f":"VLOOKUP(4,$L$5:$N$10,3)","v":"Cliquer sur Nouvelle partie"},null,{"$f":" IF($M$14=4,\"×\",\"\")","v":""},{"$f":"IF(M2=0,\"\",IF(M14=M12,\"Bravo !\",\"\"))","v":""},null,17,"Antiquité",true,{"$f":"IF(M17=FALSE,0,Data!K3+Data!L3)","v":28},null,{"$f":"IF(M17=FALSE,0,1)","v":1},null,5,3]
[null,null,null,null,null,null,null,null,null,null,18,"France",true,{"$f":"IF(M18=FALSE,0,Data!M3)","v":30},null,{"$f":"IF(M18=FALSE,0,1)","v":1},null,6,3]
[null,null,null,null,null,{"$f":"VLOOKUP(5,$L$5:$N$10,3)","v":"Cliquer sur Nouvelle partie"},null,{"$f":" IF($M$14=5,\"×\",\"\")","v":""},null,null,19,"Suisse",true,{"$f":"IF(M19=FALSE,0,Data!N3)","v":27},null,1,null,7,4]
[null,null,null,null,null,null,null,null,null,null,20,"Monde",true,{"$f":"IF(M20=FALSE,0,Data!O3)","v":54},null,1,null,8,4]
[null,null,null,null,null,{"$f":"VLOOKUP(6,$L$5:$N$10,3)","v":"Cliquer sur Nouvelle partie"},null,{"$f":" IF($M$14=6,\"×\",\"\")","v":""},null,null,21,"Inventeurs",true,{"$f":"IF(M21=FALSE,0,Data!P3)","v":41},null,1,null,9,5]
[null,null,null,null,null,null,null,null,null,null,22,"Avant 1500",false,null,{"$f":"Data!R3","v":82},0,null,10,6]
[null,{"$f":"IF(O2=0,\"Choisis les champs souhaités pour les questions et le nombre !\",\"\")","v":"Choisis les champs souhaités pour les questions et le nombre !"},null,null,null,null,null,null,null,null,23,"Après 1500",false,null,{"$f":"Data!S3","v":53},0]
[null,null,null,null,null,null,null,null,null,null,null,null,"Total",{"$f":"SUM(N17:N23)","v":180},null,{"$f":"SUM(P17:P23)","v":5}]
[]
[null,{"$f":"IF(H2=0,\"ou :\",\"\")","v":"ou :"}]
[]
[null,"Maximum de questions souhaitées :",null,180,{"$f":"\"/ \"&N4","v":"/ 180"}]

{"sheet":"Recherche","index":3,"n_rows":12,"n_cols":6,"rows_kept":12,"cut":false,"hidden":true,"merged":[[11,3,17,3],[11,4,17,4]]}
[]
["     Rechercher un événement du quiz en fonction de la date"]
[]
[null,null,null,null,null,82]
[]
[]
[]
[]
[]
[]
[]
[null,null,null,{"$f":"VLOOKUP($F$4,Data1,4)","v":"Vers 1500"},{"$f":"VLOOKUP($F$4,Data1,6)","v":"Léonard de Vinci invente entre autres le parachute. "}]

{"sheet":"Data","index":4,"n_rows":183,"n_cols":19,"rows_kept":183,"cut":false,"hidden":true,"merged":[[17,10,17,11]]}
[null,null,{"$f":"COUNTA(B3:B254)","v":180},"nb questions",null,null,0,null,"Q",null,null,null,null,null,null,null,null,"avant 1500","après 1500"]
[0,null,{"$f":"\"\"","v":""},{"$f":"\"\"","v":""},null,{"$f":"IF('Questions - Evénements'!O2=0,\"Pour démarrer : Bouton 'Nouvelle partie', choisir les options ci-dessous,  puis bouton  'Question'.\",'Questions - Evénements'!P11)","v":"Pour démarrer : Bouton 'Nouvelle partie', choisir les options ci-dessous,  puis bouton  'Question'."},null,null,"Série ^",null,1,2,3,4,5,6,7]
[1,-19000,{"$f":"VLOOKUP(E3,$K$4:$L$9,2)","v":"de la Préhistoire"},"Vers 19000 avant J.-C.",1,"Des Magdaléniens dessinent des figures d'animaux dans leurs grottes, comme celles retrouvées en 1940 à Lascaux en Dordogne.",null,null,null,"Nombre :",{"$f":"COUNTIF(ColoneE,\"=1\")","v":4},{"$f":"COUNTIF(ColoneE,\"=2\")","v":24},{"$f":"COUNTIF(ColoneE,\"=3\")","v":30},{"$f":"COUNTIF(ColoneE,\"=4\")","v":27},{"$f":"COUNTIF(ColoneE,\"=5\")","v":54},{"$f":"COUNTIF(ColoneE,\"=6\")","v":41},{"$f":"SUM(K3:P3)","v":180},{"$f":"COUNTIF($B$3:$B$137,\"<=1500\")","v":82},{"$f":"COUNTIF($B$3:$B$137,\">1500\")","v":53}]
[2,-10500,"des inventions et culture","Vers 10500 avant J.-C.",6,"Au Japon, première et plus ancienne époque de fabrication de la céramique  connue dans le monde",null,null,null,null,1,"de la Préhistoire"]
[3,-8000,"de la Préhistoire","Vers 8000 avant J.-C.",1,"Débute le néolithique, les hommes cultivent des plantes et domestiquent des animaux ",null,null,null,null,2,"antique"]
[4,-5000,"de la Préhistoire","Vers 5000 avant J.-C.",1,"Début de la culture du maïs dans la vallée de Tehuacán (Mexique actuel).",null,null,null,null,3,"de France"]
[5,-3500,"des inventions et culture","Vers 3500 avant J.-C.",6,"La roue de transport  est attribuée à Sumer en Basse Mésopotamie.",null,null,null,null,4,"Suisse"]
[6,-3000,"des inventions et culture","Vers 3000 avant J.-C.",6,"Les hommes inventent l’écriture, c’est la fin de la période néolithique.",null,null,null,null,5,"mondiale"]
[7,-2800,"de la Préhistoire","Vers 2800 avant J.-C.",1,"La métallurgie du bronze (alliage de cuivre et d'étain, plus dur que le cuivre seul, ce qui permet de fabriquer des outils plus résistants) parvient  en Grèce et en Crète.  800 ans  plus tard en Europe de l'Ouest et en Chine.",null,null,null,null,6,"des inventions et culture"]
[8,-2589,"antique","vers 2589-2566 av. J.-C.",2,"Construction de la pyramide de Khéops pour le complexe de Gizeh. Elle est commandée par le pharaon Khéops durant l'Ancien Empire."]
[9,-2000,"antique","Vers 2000 avant J.-C.",2,"Première utilisation du zéro pas les babyloniens. Les Arabes l'intégreront à leur système de numération au cours du Xe siècle.",null,null,null,"<=1500",{"$f":"COUNTIFS(ColoneE,\"=1\", ColoneB,\"<=1500\")","v":4},{"$f":"COUNTIFS(ColoneE,\"=2\", ColoneB,\"<=1500\")","v":24},{"$f":"COUNTIFS(ColoneE,\"=3\", ColoneB,\"<=1500\")","v":8},{"$f":"COUNTIFS(ColoneE,\"=4\", ColoneB,\"<=1500\")","v":6},{"$f":"COUNTIFS(ColoneE,\"=5\", ColoneB,\"<=1500\")","v":24},{"$f":"COUNTIFS(ColoneE,\"=6\", ColoneB,\"<=1500\")","v":16},{"$f":"SUM(K11:P11)","v":82}]
[10,-1590,"antique","Vers 1590 avant J.-C.",2,"Les pharaons momifiés sont ensevelis dans la Vallée des Rois située sur la rive gauche du Nil face à Thèbes.",null,null,null,">1500",{"$f":"COUNTIFS(ColoneE,\"=1\",ColoneB,\">1500\")","v":0},{"$f":"COUNTIFS(ColoneE,\"=2\",ColoneB,\">1500\")","v":0},{"$f":"COUNTIFS(ColoneE,\"=3\",ColoneB,\">1500\")","v":22},{"$f":"COUNTIFS(ColoneE,\"=4\",ColoneB,\">1500\")","v":21},{"$f":"COUNTIFS(ColoneE,\"=5\",ColoneB,\">1500\")","v":30},{"$f":"COUNTIFS(ColoneE,\"=6\",ColoneB,\">1500\")","v":25},{"$f":"SUM(K12:P12)","v":98}]
[11,-1560,"antique","1560 avant J.-C.",2,"Naissance de Moïse. La tradition juive place cette année en utilisant un schéma de 40 ans pour sa jeunesse, son séjour dans le désert, et l'errance dans le désert."]
[12,-1300,"antique","Vers 1300 avant J.-C.",2,"Arrivée du fer en Grèce. Le monde grec entre dans le premier âge du fer.",null,null,null,"choix",{"$f":"IF(Q$27=TRUE,Data!K11,0)","v":4},{"$f":"IF($Q27=TRUE,Data!L11,0)","v":24},{"$f":"IF($Q28=TRUE,Data!M11,0)","v":8},{"$f":"IF($Q29=TRUE,Data!N11,0)","v":6},{"$f":"IF($Q30=TRUE,Data!O11,0)","v":24},{"$f":"IF($Q31=TRUE,Data!P11,0)","v":16},{"$f":"IF($Q32=TRUE,Data!Q11,0)","v":0}]
[13,-1200,"antique","Vers 1200 avant J.-C.",2,"Les Hébreux s’installent dans le pays de Canaan, entre le fleuve Jourdain et la mer Méditerranée, après des années d’ exode. ",null,null,null,null,{"$f":"IF($Q$27=TRUE,Data!K12,0)","v":0},{"$f":"IF($Q$28=TRUE,Data!L12,0)","v":0},{"$f":"IF($Q$28=TRUE,Data!M12,0)","v":22},{"$f":"IF($Q$29=TRUE,Data!N12,0)","v":21},{"$f":"IF($Q$30=TRUE,Data!O12,0)","v":30},{"$f":"IF($Q$31=TRUE,Data!P12,0)","v":25},{"$f":"IF($Q$33=TRUE,Data!Q12,0)","v":0}]
[14,-780,"des inventions et culture","Vers 780 avant J.-C.",6,"L’Odyssée est une épopée grecque attribuée à Homère.  Elle est considérée, avec l’Iliade, comme l'un des  « poèmes fondateurs » de la culture antique et comme l’un des plus grands chefs-d’œuvre de la littérature mondiale."]
[15,-776,"antique","776 avant J.-C.",2,"Premiers Jeux Olympiques à Olympie.",null,null,null,"Definitif",{"$f":"SUM(K14:K15)","v":4},{"$f":"SUM(L14:L15)","v":24},30,27,54,41,0,{"$f":"SUM(M17:Q17)+K18","v":180}]
[16,-753,"antique","753 avant J.-C.",2,"Fondation de Rome.",null,null,null,null,{"$f":"SUM(K17:L17)","v":28},null,null,null,null,"nb selec",{"$f":"IF(R17=0,1,R17)","v":180},{"$f":"IF(Q18<=Q19,Q18,Q19)","v":180}]
[17,-650,"des inventions et culture","Vers 650 avant J.-C..",6,"Apparition des premières pièces de monnaie en Lydie (région occidentale de l'Anatolie). Le roi Crésus y établit un système monétaire avec des pièces faites d'électrum, un alliage d'or et d'argent.",null,null,null,null,null,null,null,null,null,"maximum",{"$f":"IF(I1=\"Q\",'Questions - Evénements'!D28,'Questions - Dates'!D28)","v":180}]
[18,-586,"antique","586 avant J.-C.",2,"Le premier temple de Jérusalem (ou Temple de Saloman) est entièrement détruit par Nabuchodonosor II, roi de Babylone. C’est la fin du royaume de Juda (un royaume d’Israël).",null,null,null,null,null,null,true]
[19,-356,"antique","356 avant J.-C. (juillet)",2,"Naissance  d'Alexandre le Grand. Roi de Macédoine, il devient l'un des plus grands conquérants de l'histoire en prenant possession de l'immense Empire perse et en s'avançant jusqu'aux rives de l'Indus.      ",null,null,null,null,null,null,true]
[20,-348,"antique","348 avant J.-C.",2,"Le Parthénon construit sur l'Acropole d'Athènes est consacré à la déesse Athéna Parthénos en cette année.",null,null,null,null,null,null,false]
[21,-300,"des inventions et culture","Vers 300 avant J.-C.",6,"Euclide écrit  un traité de mathématiques présentant de manière systématique un large ensemble de théorèmes accompagnés de leurs démonstrations. Il porte sur la géométrie et l'arithmétique.",null,null,null,null,null,null,true]
[22,-280,"antique","Vers 280 avant J.-C.",2,"Construction du Phare d'Alexandrie"]
[23,-168,"antique","168 avant J.-C.",2,"Début de la conquête romaine.",null,null,null,"Proposition question",null,null,null,"Propositon datre",null,null,"Proposition OK"]
[24,-52,"antique","52 avant J.-C.",2,"Guerre des Gaules et victoire romaine de César à Alésia."]
[25,-51,"antique","entre 51 et 30 av. J.-C. ",2,"Règne de Cléopâtre VII en Égypte. Cléopâtre a la réputation d'avoir usé de son sens de la politique et de son charme irrésistible pour asseoir son pouvoir.",null,null,null,17,{"$f":"'Questions - Evénements'!M17","v":true},{"$f":"'Questions - Evénements'!N17","v":28},null,{"$f":"'Questions - Dates'!M17","v":true},{"$f":"'Questions - Dates'!N17","v":28},null,{"$f":"IF($I$1=\"Q\",K27,N27)","v":true}]
[26,-15,"antique","15 avant J.-C.",2,"Lousonna, vicus gallo-romain est érigée au bord du Léman dans l'actuel quartier de Vidy au bord du Léman.",null,null,null,18,{"$f":"'Questions - Evénements'!M18","v":true},{"$f":"'Questions - Evénements'!N18","v":30},null,{"$f":"'Questions - Dates'!M18","v":true},{"$f":"'Questions - Dates'!N18","v":30},null,{"$f":"IF($I$1=\"Q\",K28,N28)","v":true}]
[27,37,"antique",37,2,"Naissance de Lucius Domitius Ahenobarbus, qui deviendra empereur romain à l'âge de 17 ans sous le nom de Néron.",null,null,null,19,{"$f":"'Questions - Evénements'!M19","v":true},{"$f":"'Questions - Evénements'!N19","v":27},null,{"$f":"'Questions - Dates'!M19","v":true},{"$f":"'Questions - Dates'!N19","v":27},null,true]
[28,64,"antique",64,2,"Incendie de Rome, début des persécutions contre les chrétiens.",null,null,null,20,{"$f":"'Questions - Evénements'!M20","v":true},{"$f":"'Questions - Evénements'!N20","v":54},null,{"$f":"'Questions - Dates'!M20","v":true},{"$f":"'Questions - Dates'!N20","v":54},null,true]
[29,79,"antique",79,2,"Éruption du Vésuve qui a enseveli sous les éjectas volcaniques Pompéi et Herculanum.",null,null,null,21,{"$f":"'Questions - Evénements'!M21","v":true},{"$f":"'Questions - Evénements'!N21","v":41},null,{"$f":"'Questions - Dates'!M21","v":true},{"$f":"'Questions - Dates'!N21","v":41},null,true]
[30,105,"des inventions et culture",105,6,"L’invention du papier est attribuée à Ts’ai Lun, un dignitaire de la cour impériale chinoise.",null,null,null,22,{"$f":"'Questions - Evénements'!M22","v":false},{"$f":"'Questions - Evénements'!N22","v":0},null,{"$f":"'Questions - Dates'!M22","v":false},{"$f":"'Questions - Dates'!N22","v":0},null,false]
[31,313,"antique",313,2,"Édit de Constantin (ou Édit de Milan) accorde la liberté de culte aux chrétiens et ordonne que leur soient restitués  biens et bâtiments  confisqués durant la Grande persécution.",null,null,null,23,{"$f":"'Questions - Evénements'!M23","v":false},{"$f":"'Questions - Evénements'!N23","v":0},null,{"$f":"'Questions - Dates'!M23","v":false},{"$f":"'Questions - Dates'!N23","v":0},null,false]
[32,395,"antique",395,2,"Partage de l’Empire, Empire romain d’occident et Empire romain d’Orient.",null,null,null,null,null,{"$f":"SUM(L27:L33)","v":180},null,null,{"$f":"SUM(O27:O33)","v":180}]
[33,410,{"$f":"VLOOKUP(E35,$K$4:$L$9,2)","v":"antique"},410,2,"Prise de Rome par les Goths."]
[34,476,"antique",476,2,"Chute de l’Empire romain d’occident et fin de l’Antiquité. L’Empire romain d’orient subsiste sous le nom d’Empire Byzantin avec pour capitale : Constantinople."]
[35,481,"de France",481,3,"Avènement de Clovis Iᵉʳ roi des Francs saliens, puis roi de tous les Francs. Premier roi de France, il est à l'origine de la dynastie des Mérovingiens."]
[36,490,"antique","490 avant J.-C.",2,"A Marathon, 9 000 hoplites athéniens et leurs 1 000 alliés platéens infligent une cuisante défaite aux 40 000 soldats de l’Empire perse."]
[37,624,"mondiale",624,5,"Victoire de Badr sur les Mecquois. Allah ordonne le changement de Qibla ( la prière est dirigée vers La Mecque et non plus vers Jérusalem ) et fixation du jeûne du mois de Ramadhan."]
[38,629,"mondiale",629,5,"Expulsion des Juifs de Jérusalem par Héraclius. Cette déportation donne lieu à des violences anti-juives à travers l’Empire romain d’orient et le patriarche Cyrus d’Alexandrie"]
[39,632,"mondiale","632 (4 juin)",5,"Mort à Médine de Mahomet. Chef religieux, politique et militaire arabe issu de la tribu de Quraych. Fondateur de l'islam, il en est considéré comme le prophète majeur."]
[40,751,"de France",751,3,"Pépin le Bref devient roi des Francs : la dynastie carolingienne est fondée."]
[41,800,"de France","800 (25 décembre)",3,"Sacre de l’empereur Charlemagne et Aix-la-Chapelle devient capitale du royaume."]
[42,828,"mondiale",828,5,"Début de la construction à Venise de la Basilique cathédrale Saint-Marc sur l'emplacement de la chapelle privée du palais des Doges."]
[43,888,"de France",888,3,"Pillage de Paris par les Vikings."]
[44,897,"mondiale","dès 897",5,"La sécheresse importante en Amérique centrale qui toucha le Mexique aurait pu contribuer à la chute des Mayas. "]
[45,962,"mondiale",962,5,"Couronnement d'Otton Ier. Le Saint-Empire romain germanique est constitué. IL s'étend de la mer du Nord aux États pontificaux, à l'est quatre fleuves délimitant la Francie: l'Escaut, la Meuse, la Saône et le Rhône."]
[46,987,"de France",987,3,"Le dernier roi Carolingien Louis V meurt sans descendance. Hugues Capet lui succède et fonde la dynastie des Capétiens."]
[47,1001,"mondiale","Vers 1001",5,"Découverte possible de l’Amérique par Leif Erikson, un proche parent d’Erik le Rouge venu de Norvège pour rejoindre son père au Groenland et dérouté par les vents."]
[48,1054,"mondiale",1054,5,"Schisme d’Orient entre l’église catholique d’occident et l’église orthodoxe d’Orient. "]
[49,1095,"mondiale",1095,5,"Appel à la croisade par le pape Urbain II."]
[50,1099,"mondiale",1099,5,"Siège et prise de Jérusalem par les croisés."]
[51,1129,"mondiale","1129 (13 janvier)",5,"Création de l'Ordre du Temple à l'occasion du concile de Troyes à partir d'une milice de Français chrétiens appelée la Milice des Pauvres Chevaliers du Christ et du Temple de Salomon. Les membres sont appelés les Templiers."]
[52,1173,"mondiale",1173,5,"Début de la construction de la Tour de Pise (campanile de la cathédrale Notre-Dame de l’Assomption de Pise, en Toscane."]
[53,1198,"des inventions et culture",1198,6,"Leonardo Fibonacci, mathématicien italien, introduit les chiffres indo-arabes (de zéro à 9) à Pise en remplacement des chiffres romains et révolutionne ainsi toutes les mathématiques de l'Occident."]
[54,1204,"mondiale",1204,5,"Les croisés s’emparent de Constantinople."]
[55,1206,"mondiale",1206,5,"Gengis Khan unifie la Mongolie. Début des conquêtes mongoles en Asie centrale."]
[56,1215,"mondiale","1215 - 1250",5,"Frédéric II (Friedrich II von Hohenstaufen) est Empereur du Saint-Empire romain germanique."]
[57,1232,"des inventions et culture",1232,6,"Les Chinois utilisèrent pour la première fois des roquettes au combat. Cet événement illustra l'utilisation militaire de la poudre à canon. Dès lors, l'usage de la poudre à canon se répandit rapidement à travers le monde."]
[58,1273,"mondiale",1273,5,"Fondation de la dynastie des Habsbourg avec Rodolphe Ier. Cette dynastie va exister jusqu'en 1918."]
[59,1275,"Suisse","1275 (20 ocobre)",4,"Consécration de la cathédrale de Lausanne, sous le vocable de Notre-Dame, en présence du pape Grégoire X."]
[60,1291,"Suisse",1291,4,"Signature du Pacte fédéral par les hommes libres d'Uri, Schwytz et Nidwald."]
[61,1303,"de France","1303 (septembre)",3,"L'attentat d'Anagni est l'événement le plus marquant de la lutte opposant le roi de France Philippe le Bel au pape Boniface VIII."]
[62,1307,"Suisse",1307,4,"Le Serment du Grütli est un mythe fondateur de la Suisse de caractère légendaire. Trois Confédérés Arnold de Melchtal, Walter Fürst et Werner Stauffacher scellent le pacte d'alliance sur la prairie du Grütli. "]
[63,1309,"mondiale",1309,5,"Le pape Clément V décide de quitter Rome dont il redoute des tensions grandissantes l'opposent à l'Empereur. Il s'installe alors en Avignon."]
[64,1315,"Suisse","1315 (15 novembre)",4,"Bataille de Morgarten au sud de Zurich. Là, quelque 1 500 confédérés suisses repoussèrent les 4 000 à 8 000 soldats du duc Léopold Ier d'Autriche, seigneur de Habsbourg."]
[65,1336,{"$f":"VLOOKUP(E67,$K$4:$L$9,2)","v":"des inventions et culture"},1336,6,"Première horloge à sonner les heures. Elle sera installée sur un clocher de la ville de Milan."]
[66,1337,"mondiale","1337-1453",5,"Guerre de Cent Ans. Conflit entrecoupé de trêves plus ou moins longues, opposant la dynastie des Plantagenêts à celle des Valois, à travers elles, le royaume d'Angleterre et celui de France."]
[67,1347,"mondiale","1347-1350",5,"Pestes Noires , aussi appelée grande peste ou mort noire, est une pandémie de peste  bubonique. Elle touche l'Europe à travers les invasions mongoles faisant jusqu'à 200 millions de victimes à travers le monde. "]
[68,1386,"Suisse",1386,4,"Bataille de Sempach, décès de Léopold III de Habsbourg stoppant les prétentions des Habsbourg au sud du Rhin."]
[69,1402,"mondiale",1402,5,"Le conquérant mongol Tamerlan bat le sultan ottoman à la bataille d'Angor après avoir envahi la Syrie et ravagé Alep, Damas et Bagdad."]
[70,1411,"des inventions et culture","Vers 1411",6,"L'arquebuse (canon à main) apparaît dans les armées. Il s'agit d'une arme à feu individuelle de portée  limitée (moins de 50 mètres), assez lourde et encombrante, mais dont on pouvait épauler."]
[71,1429,"de France","1429-1431",3,"Chevauchée de Jeanne d’Arc. Elle  convainc le dauphin d’aller se faire sacrer à Reims. Cette chevauchée est couronnée de succès et donne à Charles VII le trône dont il avait été évincé par le traité de Troyes."]
[72,1450,"des inventions et culture",1450,6,"Invention de l'imprimerie par Johannes Gutenberg"]
[73,1453,"mondiale","1453 (6 avril - 29 mai)",5,"Les troupes ottomanes conduites par Mehmed II s’emparent de Constantinople. C'est la fin de l’Empire byzantin."]
[74,1453,"de France","1453 (17 juillet)",3,"Charles VII, roi de France remporte la bataille de Castillon. C’est la fin de la Guerre de Cent Ans."]
[75,1455,"des inventions et culture",1455,6,"La Bible est le premier livre imprimé par Gutenberg."]
[76,1476,"Suisse","1476 (22 juin)",4,"Bataille de Morat. Une victoire remportée par les Confédérés suisses et leurs alliés alsaciens sur l'armée bourguignonne du duc Charles le Téméraire."]
[77,1477,"des inventions et culture",1477,6,"Début de la construction de la 'Chapelle Sixtine' une des salles des palais pontificaux du Vatican. "]
[78,1485,"des inventions et culture",1485,6,"Sandro Botticelli peint \"La Naissance de Vénus\" exposée actuellement à la Galerie des Offices à Florence."]
[79,1492,"mondiale",1492,5,"Découverte de l’Amérique par Christophe Colomb."]
[80,1494,"mondiale","1494 ( 6 novembre)",5,"Naissance de Soliman Ier dit Soliman le Magnifique à Trébizonde dans l'actuelle Turquie. Il sera l'un des monarques les plus éminents de son siècle et présida à l'apogée de la puissance de l'Empire ottoman."]
[81,1498,"mondiale",1498,5,"Vasco de Gama contourne l’Afrique pour atteindre les Indes."]
[82,1500,"des inventions et culture","Vers 1500",6,"Léonard de Vinci invente entre autres le parachute. "]
[83,1515,"Suisse",1515,4,"La Bataille de Marignan opposa François Ier aux mercenaires suisses qui défendaient le duché de Milan."]
[84,1516,null,"1516 (29 novembre)",4,"François Ier, et les XIII Cantons suisses concluent une Paix perpétuelle à Fribourg. En dépit de la défaite de Marignan, les Confédérés acquièrent de nouveaux territoires et renforcent leur réputation militaire."]
[85,1519,{"$f":"VLOOKUP(E87,$K$4:$L$9,2)","v":"mondiale"},1519,5,"Départ de Magellan pour effectuer le tour du monde en trois ans."]
[86,1520,"de France","1520-1550",3,"Les rois de France se font bâtir des châteaux en Île-de-France et Val de Loire"]
[87,1520,"Suisse",1520,4,"Apparition de la réforme protestante (apparue 3 ans plus tôt dans le Saint-Empire avec Martin Luther) dans la confédération des XIII cantons."]
[88,1529,"Suisse",1529,4,"Première guerre de Kappel. Les catholiques et les protestants déposèrent au dernier moment les armes et se réconcilièrent autour d’une soupe."]
[89,1535,"Suisse",1536,4,"Les Bernois, conquièrent le Pays de Vaud et occupent le château de Chillon qui conserve son rôle de forteresse, d’arsenal et de prison."]
[90,1539,"de France","1539 (août)",3,"Ordonnance de Villers-Cotterêts. François Ier impose l'usage du français dans les actes politiques et juridiques."]
[91,1540,"Suisse",1540,4,"Calvin fonde l’Église réformée à Genève."]
[92,1547,null,"1547 (16 janvier)",5,"Le Prince russe Ivan IV Vassiliévitch dit Ivan le Terrible est sacré tsar de toutes les Russies à Moscou. Après la mort de sa femme Anastasia Romanovna, Ivan IV se lance dans un régime de terreur."]
[93,1571,{"$f":"VLOOKUP(E95,$K$4:$L$9,2)","v":"mondiale"},"1571 (7 octobre)",5,"Bataille de Lépante, dans le golfe de Patras, (côte occidentale de la Grèce).  C'est une bataille navale de la quatrième guerre vénéto-ottomane, où s'affrontent la flotte ottomane de Sélim II et la flotte de la Sainte-Ligue."]
[94,1572,"de France","1572 ( 23 - 24 août)",3,"Massacre de la Saint-Barthélemy. Une tuerie de masse ayant débuté le jour de la Saint-Barthélemy, et durant laquelle plusieurs milliers de protestants (huguenots) sont massacrés par des catholiques à Paris."]
[95,1582,"mondiale",1582,5,"Introduction du calendrier grégorien dans la nuit de 15 octobre."]
[96,1585,"de France","1585 (9 septembre)",3,"Naissance d'Armand Jean du Plessis de Richelieu, dit le cardinal de Richelieu. Ecclésiastique et homme d'État il fut ministre du roi Louis XIII. Il se distingue en entrant  au service de la régente Marie de Médicis."]
[97,1589,"de France","1589 ( 2 août)",3,"Assassinat du roi Henri III à Saint-Cloud, sans héritier, c’est la fin de la dynastie des Valois."]
[98,1598,"de France",1598,3,"Édit de Nantes signé par Henri IV qui tolère la religion protestante. Il met fin aux guerres de Religion en France en accordant aux protestants des droits civils et religieux."]
[99,1610,"de France","1610 (14 mai)",3,"Assassinat à Paris du roi de France Henri IV par Ravaillac. Début du règne de Louis XIII sous la régence de Marie de Médicis."]
[100,1618,"de France","1618-1648",3,"Guerre de Trente Ans qui oppose les catholiques et protestants du Saint Empire."]
[101,1632,"des inventions et culture",1632,6,"Année de naissance de Johannes Vermeer, peintre néerlandais du mouvement baroque. Célèbre pour ses scènes domestiques intimes et pour la tableau \"La Jeune Fille à la perle\"."]
[102,1643,"de France",1643,3,"Louis XIV (Le Roi-Soleil) devient roi à quatre ans.  8 ans sous la régence de sa mère Anne d'Autriche, son règne durera 72 ans."]
[103,1648,"de France","1648-1653",3,"La Fronde. Une période de troubles qui frappent la France alors en guerre contre l’Espagne, pendant la minorité de Louis XIV. Période de révoltes face à la montée de l’autorité monarchique."]
[104,1648,"mondiale","1648 (24 octobre)",5,"Signature des traités de Wetsphalie concluant la querre de Trente Ans entre l'Europe de l'ouest et le Saint-Empire romain germanique."]
[105,1649,"mondiale","1649 (30 janvier)",5,"Exécution de Charles Ier roi d’Angleterre. Il fut décapité à Whitehall, Londres, suite à la guerre civile anglaise et à son procès pour trahison."]
[106,1661,"de France",1661,3,"Début du règne personnel de Louis XIV."]
[107,1666,"mondiale",1666,5,"Le grand incendie de Londres. Il brûle 13 200 maisons, 87 églises paroissiales, la cathédrale Saint-Paul, et la majorité des bâtiments publics de la Cité."]
[108,1671,"des inventions et culture",1671,6,"L'Anglais Isaac Newton invente le télescope à deux miroirs qui permet de grossir 40 fois les astres observés."]
[109,1682,"de France",1682,3,"Installation de la cour à Versailles. La France est la première puissance d’Europe."]
[110,1687,"des inventions et culture",1687,6,"Denis Papin  donne la première description d’une machine à vapeur qui fonctionne par le jeu alternatif d’un piston dans un cylindre."]
[111,1715,"de France",1715,3,"Mort de Louis XIV."]
[112,1717,"mondiale",1717,5,"Fondation de \"La Grande Loge d'Angleterre\". Première obédience maçonnique créée dans le monde à partir de la fusion de quatre loges londoniennes. "]
[113,1723,"Suisse","1723 (24 avril)",4,"Décapitation du major Davel.  Il est nommé par les Bernois à la tête du commandement des milices vaudoises de Lavaux. Son plan visant à l'autonomie du Pays de Vaud lui vaudra arrestation puis exécution."]
[114,1743,"des inventions et culture","1743 (26 août)",6,"Naissance d'Antoine Lavoisier, chimiste français. Avec Berthollet il  conçoit une nomenclature chimique  qui sert de base au système moderne. On lui doit la maxime « Rien ne se perd, rien ne se crée, tout se transforme »."]
[115,1751,"des inventions et culture",1751,6,"Parution du volume I de \"L’Encyclopédie ou Dictionnaire raisonné des sciences, des arts et des métiers\" . Édité sous la direction de Denis Diderot et, partiellement, de Jean Le Rond d'Alembert et Louis de Jaucourt."]
[116,1759,"des inventions et culture",1759,6,"Invention du ciment. John Smeaton produit un mortier aussi dur que de la pierre en mélangeant des chaux hydrauliques et des cendres volcaniques."]
[117,1761,"des inventions et culture","1761 (février) ",6,"Jean-Jacques Rousseau fait paraître son roman épistolaire \"Julie ou la Nouvelle Héloïse\" qui sera l'un des plus grands succès de librairie de son siècle, révélant ainsi la place faite à la sensibilité au temps des Lumières."]
[118,1776,"mondiale","1776 (4 juillet)",5,"Déclaration d'indépendance des États-Unis. Treize Colonies  de l'Empire britannique en Amérique ont déclaré leur souveraineté vis-à-vis de la Grande-Bretagne  pour former les « États-Unis d'Amérique ». "]
[119,1784,"des inventions et culture",1784,6,"James Watt fait breveter une locomotive à vapeur.  Il introduit une unité appelée le cheval-vapeur pour comparer la puissance fournie par les machines à vapeur."]
[120,1787,"mondiale","1787 (17 septembre)",5,"Acceptation  de la Constitution des États-Unis. Selon ses propres termes, c'est la loi suprême des États-Unis d'Amérique."]
[121,1789,"de France",1789,3,"Révolution française. Prise de la Bastille le 14 juillet."]
[122,1789,"de France","1789 (26 août)",3,"La Déclaration des droits de l'homme et du citoyen est acceptée par l’Assemblée constituante comme préambule de la Constitution française."]
[123,1792,"Suisse",1792,4,"La France déclare la guerre à l'Autriche et envahit la Suisse. La Diète fédérale, de son côté, proclame le 13 mai à Frauenfeld sa neutralité dans le conflit."]
[124,1798,"Suisse","1798 (24 janvier)",4,"L'indépendance vaudoise. Le Pays de Vaud met fin à la domination bernoise. Étape cruciale de l'histoire vaudoise. L'indépendance fut proclamée  sur la place de la Palud, suite à un soutien de la France révolutionnaire. "]
[125,1799,"de France",1799,3,"Bonaparte devient Premier Consul et établi de régime du Consulat. En tant que Premier Consul, Bonaparte détient les pleins pouvoirs exécutifs, diplomatiques et militaires, tout en contrôlant le pouvoir législatif."]
[126,1800,"des inventions et culture",1800,6,"Invention de la pile électrique par le physicien italien Alessandro Volta"]
[127,1801,null,1801,6,"Mise au point par Joseph Marie Jacquard avec l'aide du menuisier Jean-Antoine Breton du premier métier à tisser, système mécanique programmable avec cartes perforées."]
[128,1803,{"$f":"VLOOKUP(E130,$K$4:$L$9,2)","v":"Suisse"},1803,4,"Entrée dans la Confédération Suisse des cantons de St.-Gall, des Grisons, d'Argovie,  de Thurgovie, du Tessin et de Vaud."]
[129,1803,"Suisse","1803 (19 février)",4," L' \"Acte de Médiation\", entre la République helvétique au bord de l'effondrement militaire et l'armée des fédéralistes insurgés (partisans de la souveraineté des cantons), est signé par Bonaparte à Paris."]
[130,1804,"de France",1804,3,"Sacre de Napoléon le 2 décembre et début de l’Empire."]
[131,1805,"mondiale","1805 (21 octobre)",5,"Bataille de Trafalgar opposant les flottes françaises de Napoléon et espagnoles à la flotte britannique commandée par Nelson, au large du Cap de Trafalgar (E). La victoire des Britanniques est totale."]
[132,1807,"mondiale",1807,5,"Naissance du général Giuseppe Garibaldi, considéré, avec Cavour, Victor-Emmanuel II et Mazzini, comme l’un des « pères de la patrie » italienne."]
[133,1815,"Suisse",1815,4,"Entrée dans la Confédération Suisse des cantons du Valais de Genève et de Neuchâtel."]
[134,1815,"mondiale","1815 (9 juin)",5,"Acte final du Congrès de Vienne qui rétablit l’ordre ancien des princes sur l’Europe. Les pays vainqueurs de Napoléon Ier ainsi que les autres États européens se réunissent pour rédiger et signer les conditions de la paix."]
[135,1815,"mondiale","1815 (18 juin)",5,"Bataille de Waterloo en Belgique. Elle a opposé l'armée de Napoléon Ier, à l'armée des Alliés, dirigée par le duc de Wellington. Elle s'est achevée par la défaite décisive de l'armée française."]
[136,1830,"de France",1830,3,"Conquête de l’Algérie par la France."]
[137,1840,"des inventions et culture",1840,6,"Pierre-Joseph Proudhon, journaliste, économiste, philosophe et homme politique français, écrit dans son premier ouvrage \"Qu'est-ce que la propriété ?\" la formule qui le rendit célèbre : « La propriété, c'est le vol ! »."]
[138,1847,"Suisse","1847 (novembre)",4,"Guerre du Sonderbund. Guerre civile sécessionniste.  Victoire des troupes fédérales, commandées par le Général Dufour, sur celles des 7 cantons catholiques (Ligue  du Sonderbund)."]
[139,1848,"Suisse","1848 (12 septembre)",4,"La Suisse moderne est née avec l'entrée en vigueur de la Constitution fédérale."]
[140,1859,"des inventions et culture",1859,6,"Réalisation du premier moteur à combustion à deux temps par Étienne Lenoir."]
[141,1860,"des inventions et culture",1860,6,"Au début de cette année, de jeunes peintres se regroupent pour créer une nouvelle peinture. Ils se détachent des règles trop strictes de l'Académie. L'impressionniste est né avec Monet, Renoir, Cézanne, Degas entre autres."]
[142,1863,"des inventions et culture","1863 (17 février)",6,"Fondation à Genève par Henry Dunant du «Comité International de secours aux militaires blessés en campagne », désigné trois années plus tard, par le nom de « Comité international de la Croix-Rouge »"]
[143,1864,"mondiale","dès 1864",5,"Le Phylloxéra. Ce puceron, de moins de 0,50 mm, originaire des États-Unis, a ravagé pendant des années des millions d’hectares de vignobles, bouleversant la culture traditionnelle de la Vigne européenne."]
[144,1865,"des inventions et culture",1865,6,"Naissance le 31 mars à Eisenach dans le duché de Saxe-Eisenach de Jean-Sébastien Bach, compositeur et musicien allemand. Mort à Leipzig à l'âge de 65 ans."]
[145,1869,"mondiale",1869,5,"Inauguration du canal de Suez."]
[146,1874,"Suisse",1874,4,"Le droit de référendum. Révision de la Constitution et introduction du droit de référendum."]
[147,1876,"des inventions et culture",1876,6,"Invention du téléphone par Alexander Graham Bell. Dépôt du brevet pour la transmission de la voix humaine le 14 février."]
[148,1878,"des inventions et culture",1878,6,"Invention du phonographe par Thomas Edison"]
[149,1879,"des inventions et culture",1879,6,"Thomas Edison dépose un brevet pour une ampoule électrique."]
[150,1885,"des inventions et culture",1885,6,"Pasteur découvre le vaccin contre la rage."]
[151,1898,"Suisse",1898,4,"Rachat des Chemins de fer suisses par la Confédération menant à la création des Chemins de fer fédéraux suisses (CFF)"]
[152,1903,"des inventions et culture",1903,6,"Premier vol d'un avion motorisé réalisé par les frères Wright"]
[153,1905,"des inventions et culture",1905,6,"Albert Einstein publie la célèbre formule de la relativité :  E = mc2 soulevant ainsi de nouveaux horizons à la physique."]
[154,1907,"Suisse",1907,4,"Création de la Banque nationale suisse (BNS)."]
[155,1912,"mondiale","1912 (14 avri)",5,"Naufrage du Titanic qui devait relier Southampton à New York et qui a  heurté un iceberg. Environ 1500 personnes périssent."]
[156,1914,"mondiale","1914 (28 juin)",5,"L’assassinat de François-Ferdinand, l’archiduc d’Autriche et prince héritier de l’empire austro-hongrois. "]
[157,1914,"mondiale","1914 (1er août)",5,"L’Allemagne déclare la guerre à la Russie. Le général Paul von HINDENBURG est à la tête de l'armée."]
[158,1914,"mondiale","1914 (3 août)",5,"L’Allemagne déclare la guerre à la France et envahit la Belgique et le Luxembourg."]
[159,1916,"de France","1916 (21 fév.-18 déc.)",3,"Verdun. Une bataille qui s'est déroulée en Lorraine en  opposant les armées française et allemande. Elle a fait plus de 305 000 tués et 400 000 blessés. Victoire défensive française et échec de l’offensive allemande."]
[160,1917,"mondiale","1917 (février)",5,"Révolution russe  ayant conduit au renversement spontané du régime tsariste de Russie."]
[161,1918,"mondiale","1918 (11 novembre)",5,"Armistice. Victoire des Alliés. Elle marque la fin des combats de la Première Guerre mondiale sur le front occidental. Ce document n'est pas un traité de paix ; le traité de paix, tel que le traité de Versailles, est signé plus tard. "]
[162,1922,"mondiale","1922 (30 décembre)",5,"Fondation de l’URSS (Union des Républiques socialistes soviétiques)  ratifiée par le Congrès des soviets de Russie, de Biélorussie, d'Ukraine et de Transcaucasie. État marxiste-léniniste, sous la direction du Parti communiste."]
[163,1924,"mondiale","1924-1953",5,"Staline au pouvoir en U.R.S.S."]
[164,1929,"mondiale","1929 (24 -29 octobre)",5,"Krach de Wall Street (jeudi noir). La crise économique mondiale qui suit cette crise boursière provoque un chômage massif."]
[165,1933,null,"1933 (30 janvier)",5,"Adolf Hitler est nommé chancelier d'Allemagne par le président Paul von Hindenburg après avoir remporté les élections."]
[166,1940,{"$f":"VLOOKUP(E168,$K$4:$L$9,2)","v":"de France"},1940,3,"Appel du Général de Gaulle à Londres le 18 juin  pour la résistance."]
[167,1944,"mondiale",1944,5,"Débarquement de Normandie, nom de code opération Neptune. C'est une vaste opération militaire amphibie et aéroportée alliée de la Seconde Guerre mondiale lancée dans la nuit du 5 au 6 juin."]
[168,1945,"mondiale",1945,5,"Capitulation de l'Allemagne en mai."]
[169,1954,"de France",1954,3,"La France renonce à l’Indochine."]
[170,1957,"mondiale","1957 (25 mars)",5,"Signature du traité de Rome instituant la Communauté économique européenne entre six pays : Allemagne de l'Ouest, Belgique, France, Italie, Luxembourg et Pays-Bas."]
[171,1958,"des inventions et culture",1958,6,"Jack Kilby crée le premier circuit intégré."]
[172,1960,"des inventions et culture","1960 (16 mai)",6,"Theodore H. Maiman, ingénieur californien, reprit les études d’Einstein et actionna le premier laser dans les laboratoires Hughes Research à Malibu."]
[173,1969,"des inventions et culture",1969,6,"Premiers pas de l'homme sur la lune, le 20 juillet."]
[174,1971,"Suisse",1971,4,"Les femmes suisses obtiennent le droit de vote au niveau fédéral."]
[175,1978,"Suisse","1978 (24 septembre)",4,"Création du canton du Jura, officiellement la République et Canton du Jura. Composé de trois districts avec comme chef-lieu Delémont il est le plus récent canton de Suisse."]
[176,1984,"de France","dès 1894",3,"Affaire Dreyfus.  Une affaire d'État devenue un conflit social et politique majeur  en France autour de l'accusation de trahison faite au capitaine Alfred Dreyfus, juif d'origine alsacienne, qui sera finalement innocenté."]
[177,1989,"mondiale",1989,5,"Chute du mur de Berlin le 9 novembre."]
[178,1991,"des inventions et culture",1991,6,"Au CERN, Sir Timothy John Berners-Lee donne naissance au «world-wide web» le 6 août."]
[179,2001,"Suisse","2001 (2 octobre)",4,"Swissair n'est plus en mesure de payer ses factures, les vols sont suspendus et l'ensemble de la flotte reste au sol. 39 000 passagers sont bloqués. Cet épisode est connu sous le nom de « grounding »,"]
[180,2002,"Suisse","2002 (11 septembre)",4,"La Suisse devient le 190e état membre de l'Organisation des Nations unies (Initiative populaire pour l'adhésion à l'ONU)."]
[181,null,null,null,null,"fin"]